bitfinex-derivatives/quotes_BNBF0:USTF0_20250529
["timestamp","ask_amount","ask_price","bid_price","bid_amount"]
[1748511421684,0.88642354,689.76,688.88,0.46060262]
[1748511421885,0.88642354,689.75,688.93,0.46060262]
[1748511422188,0.88642235,689.74,688.93,0.46060262]
[1748511422386,0.28995172,689.77,688.93,0.46060262]
[1748511422780,0.88643539,689.76,688.9,0.46060262]
[1748511422981,0.88643539,689.76,688.37,0.75114404]
[1748511422982,0.88643556,689.75,688.93,0.46060262]
[1748511423181,0.88643556,689.74,688.93,0.46060262]
[1748511423388,0.28995172,689.77,688.93,0.46060262]
[1748511423590,0.88643596,689.76,688.93,0.46060262]
[1748511423787,0.88643596,689.75,688.94,0.46060262]
[1748511423988,0.8864425,689.74,688.93,0.46060262]
[1748511424189,0.28995172,689.77,688.93,0.46060262]
[1748511424488,0.88642981,689.76,688.93,0.46060262]
[1748511424689,0.88642981,689.75,688.98,0.46060262]
[1748511424988,0.28995172,689.77,688.99,0.46060262]
[1748511425189,0.88643159,689.76,688.99,0.46060262]
[1748511425390,0.28995172,689.77,688.99,0.46060262]
[1748511425584,0.88643681,689.76,689.06,0.46060262]
[1748511425787,0.28995172,689.77,689.06,0.46060262]
[1748511426290,0.28995172,689.77,689.08,0.46060262]
[1748511426490,0.28995172,689.77,689.05,0.46060262]
[1748511426791,0.28995172,689.77,688.37,0.29054142]
[1748511426792,0.28995172,689.77,688.95,0.46060262]
[1748511428285,0.28995172,689.77,688.91,0.46060262]
[1748511428487,0.28995172,689.77,688.87,0.46060262]
[1748511430190,0.28995172,689.77,688.37,0.29054142]
[1748511430191,0.28995172,689.77,688.86,0.46060262]
[1748511430394,0.28995172,689.77,688.87,0.46060262]
[1748511430590,0.28995172,689.77,688.82,0.46060262]
[1748511431193,0.28995172,689.77,688.79,0.46060262]
[1748511432596,0.28995172,689.77,688.8,0.46060262]
[1748511432796,0.28995172,689.77,688.81,0.46060262]
[1748511433399,0.28995172,689.77,688.77,0.46060262]
[1748511433592,0.28995172,689.77,688.8,0.46060262]
[1748511434397,0.28995172,689.77,688.78,0.46060262]
[1748511435500,1.02454756,689.76,688.75,0.46060262]
[1748511435700,0.28995172,689.77,688.75,0.46060262]
[1748511435899,1.02458771,689.76,688.75,0.46060262]
[1748511436093,1.0245879,689.75,688.75,0.46060262]
[1748511436300,0.28995172,689.77,688.76,0.46060262]
[1748511436499,0.28995172,689.77,688.78,0.46060262]
[1748511436900,1.02463349,689.76,688.78,0.46060262]
[1748511437100,0.28995172,689.77,688.78,0.46060262]
[1748511437502,1.91110301,689.76,688.78,0.46060262]
[1748511437706,0.28995172,689.77,688.78,0.46060262]
[1748511437900,1.02462888,689.76,688.78,0.46060262]
[1748511438110,0.28995172,689.77,688.8,0.46060262]
[1748511438400,0.28995172,689.77,688.79,0.46060262]
[1748511438601,1.91122585,689.76,688.79,0.46060262]
[1748511438800,0.28995172,689.77,688.81,0.46060262]
[1748511439200,1.02470143,689.76,688.82,0.46060262]
[1748511439406,0.28995172,689.77,688.73,0.46060262]
[1748511439607,0.28995172,689.77,688.72,0.46060262]
[1748511440006,0.28995172,689.77,688.74,0.46060262]
[1748511440203,1.9113841,689.76,688.75,0.46060262]
[1748511440509,1.02530981,689.75,688.75,0.46060262]
[1748511440710,1.02530981,689.74,688.75,0.46060262]
[1748511440903,0.28995172,689.77,688.75,0.46060262]
[1748511441108,0.28995172,689.77,688.77,0.46060262]
[1748511441912,0.28995172,689.77,688.37,0.29054142]
[1748511441913,0.88679044,689.76,688.72,0.46060262]
[1748511442209,0.88679276,689.75,688.72,0.46060262]
[1748511442404,0.28995172,689.77,688.72,0.46060262]
[1748511442706,0.88692137,689.76,688.72,0.46060262]
[1748511442907,0.28995172,689.77,688.72,0.46060262]
[1748511443106,0.28995172,689.77,688.7,0.46060262]
[1748511443309,0.28995172,689.77,688.73,0.46060262]
[1748511443510,0.88691187,689.76,688.73,0.46060262]
[1748511443707,1.91209227,689.75,688.73,0.46060262]
[1748511443909,1.91209227,689.74,688.73,0.46060262]
[1748511444105,1.91251705,689.73,688.72,0.46060262]
[1748511444309,1.91253089,689.72,688.73,0.46060262]
[1748511444509,0.28995172,689.77,688.73,0.46060262]
[1748511444706,0.88711578,689.76,688.73,0.46060262]
[1748511445010,0.28995172,689.77,688.73,0.46060262]
[1748511445412,0.28995172,689.77,688.75,0.46060262]
[1748511445609,0.88711634,689.76,688.75,0.46060262]
[1748511445813,0.88711632,689.75,688.75,0.46060262]
[1748511446012,0.28995172,689.77,688.76,0.46060262]
[1748511446307,1.0254717,689.76,688.76,0.46060262]
[1748511446508,1.0254717,689.75,688.76,0.46060262]
[1748511446813,1.0254717,689.75,688.37,0.29054142]
[1748511446814,0.28995172,689.77,688.82,0.46060262]
[1748511447210,1.91264671,689.76,688.83,0.46060262]
[1748511447410,1.91251395,689.75,688.84,0.46060262]
[1748511447611,0.28995172,689.77,688.84,0.46060262]
[1748511447909,1.91250324,689.76,688.84,0.46060262]
[1748511448207,1.91250324,689.75,688.84,0.46060262]
[1748511448413,1.0253432,689.74,688.83,0.46060262]
[1748511448609,1.91250252,689.73,688.83,0.46060262]
[1748511448810,0.88715932,689.72,688.93,0.46060262]
[1748511449009,0.88716407,689.71,688.93,0.46060262]
[1748511449216,0.88716407,689.7,688.93,0.46060262]
[1748511449410,0.28995172,689.77,688.93,0.46060262]
[1748511449613,0.28995172,689.77,688.95,0.46060262]
[1748511450208,1.91252477,689.76,688.95,0.46060262]
[1748511450406,1.02535477,689.75,688.95,0.46060262]
[1748511450609,1.02535596,689.74,688.95,0.46060262]
[1748511450810,0.28995172,689.77,688.95,0.46060262]
[1748511451013,0.88718141,689.76,688.95,0.46060262]
[1748511451211,0.28995172,689.77,688.95,0.46060262]
[1748511451414,1.91256606,689.76,688.95,0.46060262]
[1748511451615,1.91256606,689.75,689.0,0.46060262]
[1748511451815,1.91258248,689.74,689.0,0.46060262]
[1748511452014,1.91258367,689.73,689.0,0.46060262]
[1748511452211,0.88719777,689.72,689.0,0.46060262]
[1748511452517,0.88719785,689.71,689.0,0.46060262]
[1748511452714,0.28995172,689.77,689.09,0.46060262]
[1748511452920,1.91263224,689.76,689.14,0.46060262]
[1748511453120,1.91263224,689.75,688.89,0.46060262]
[1748511453314,1.91263224,689.74,688.79,0.46060262]
[1748511453519,2.20260077,689.73,688.74,0.46060262]
[1748511453720,2.20281668,689.72,688.74,0.46060262]
[1748511453918,1.31559006,689.71,688.71,0.46060262]
[1748511454113,1.31559006,689.71,688.37,0.29054142]
[1748511454114,1.91179673,689.7,688.7,0.46060262]
[1748511454318,1.9118365,689.69,688.7,0.46060262]
[1748511454516,1.91183647,689.68,688.67,0.46060262]
[1748511454715,1.91183647,689.67,688.67,0.46060262]
[1748511455019,1.9118318,689.66,688.77,0.46060262]
[1748511455216,0.88686928,689.65,688.81,0.46060262]
[1748511455419,1.91188495,689.64,688.81,0.46060262]
[1748511455614,1.91188157,689.63,688.78,0.46060262]
[1748511455817,1.91188158,689.62,688.78,0.46060262]
[1748511456019,1.02494146,689.61,688.78,0.46060262]
[1748511456320,1.91188148,689.6,688.8,0.46060262]
[1748511456519,1.91188148,689.59,688.75,0.46060262]
[1748511456719,1.91106539,689.58,688.75,0.46060262]
[1748511456917,1.91106539,689.57,688.75,0.46060262]
[1748511457120,0.88656411,689.56,688.75,0.46060262]
[1748511457418,0.88656411,689.55,688.65,0.46060262]
[1748511457621,0.28997694,689.71,688.59,0.46060262]
[1748511458422,1.0244834,689.7,688.61,0.46060262]
[1748511458717,0.28997694,689.71,688.57,0.46060262]
[1748511458921,1.91103313,689.7,688.55,0.46060262]
[1748511459117,1.91103313,689.69,688.6,0.46060262]
[1748511459317,1.91103313,689.68,688.64,0.46060262]
[1748511459521,1.91103313,689.67,688.63,0.46060262]
[1748511459818,1.9100125,689.66,688.63,0.46060262]
[1748511460018,1.0239365,689.65,688.63,0.46060262]
[1748511460224,1.91000238,689.64,688.63,0.46060262]
[1748511460424,1.90994464,689.63,688.65,0.46060262]
[1748511460624,1.90994464,689.62,688.64,0.46060262]
[1748511460919,1.9093996,689.61,688.64,0.46060262]
[1748511461123,0.28997694,689.71,688.58,0.46060262]
[1748511461124,0.88579051,689.6,688.58,0.46060262]
[1748511461329,0.88579051,689.59,688.58,0.46060262]
[1748511461523,1.0235658,689.69,688.53,0.46060262]
[1748511461722,0.28998535,689.69,688.53,0.46060262]
[1748511461924,0.8857463,689.68,688.46,0.46060262]
[1748511462123,0.88574658,689.67,688.46,0.46060262]
[1748511462424,0.28998535,689.69,688.45,0.46060262]
[1748511462620,0.88571201,689.68,688.44,0.46060262]
[1748511462825,1.90901641,689.67,688.44,0.46060262]
[1748511463023,1.90901641,689.66,688.44,0.46060262]
[1748511463225,1.90901641,689.65,688.44,0.46060262]
[1748511463424,1.0233044,689.64,688.44,0.46060262]
[1748511463622,1.90894571,689.63,688.43,0.46060262]
[1748511463922,0.28998535,689.69,688.43,0.46060262]
[1748511464225,0.28998535,689.69,688.45,0.46060262]
[1748511464425,0.88568487,689.68,688.44,0.46060262]
[1748511464627,0.28999376,689.67,688.48,0.46060262]
[1748511464826,1.90897746,689.66,688.48,0.46060262]
[1748511465128,2.19874815,689.65,688.46,0.46060262]
[1748511465323,2.19875236,689.64,688.46,0.46060262]
[1748511465522,0.25244374,689.91,688.44,0.46060262]
[1748511465523,2.19875656,689.63,688.44,0.46060262]
[1748511465723,1.17535623,689.62,688.44,0.46060262]
[1748511465923,0.29001899,689.61,688.45,0.46060262]
[1748511466127,0.88538041,689.6,688.43,0.46060262]
[1748511466326,1.17540781,689.59,688.43,0.46060262]
[1748511466629,0.29003161,689.58,688.42,0.46060262]
[1748511466831,0.88538041,689.57,688.59,0.46060262]
[1748511467027,1.17542043,689.56,688.59,0.46060262]
[1748511467225,0.29004002,689.56,688.59,0.46060262]
[1748511467530,0.88515653,689.55,688.58,0.46060262]
[1748511467726,0.88512916,689.55,688.57,0.46060262]
[1748511467928,0.29004002,689.56,688.57,0.46060262]
[1748511468729,0.8850885,689.55,688.55,0.46060262]
[1748511468931,0.29004002,689.56,688.56,0.46060262]
[1748511469552,0.29004002,689.56,688.53,0.46060262]
[1748511470531,0.29004002,689.56,688.52,0.46060262]
[1748511471237,0.29004002,689.56,688.56,0.46060262]
[1748511471428,0.29004002,689.56,688.55,0.46060262]
[1748511471830,0.29004002,689.56,688.5,0.46060262]
[1748511473235,0.29004002,689.56,688.49,0.46060262]
[1748511474131,0.29004002,689.56,688.48,0.46060262]
[1748511474335,0.29004002,689.56,688.42,0.46060262]
[1748511475832,0.29004002,689.56,688.43,0.46060262]
[1748511476031,0.29004002,689.56,688.42,0.46060262]
[1748511476236,0.29004002,689.56,688.44,0.46060262]
[1748511476635,0.29004002,689.56,688.49,0.46060262]
[1748511477135,0.29004002,689.56,688.47,0.46060262]
[1748511477334,0.29004002,689.56,688.4,0.46060262]
[1748511477532,0.29004002,689.56,688.37,0.29054142]
[1748511489742,0.29004002,689.56,688.46,0.46060262]
[1748511490643,0.29004002,689.56,688.47,0.46060262]
[1748511490845,0.29004002,689.56,688.6,0.46060262]
[1748511491048,0.29004002,689.56,688.67,0.46060262]
[1748511491747,0.29004002,689.56,688.68,0.46060262]
[1748511491941,0.29004002,689.56,688.69,0.46060262]
[1748511492141,0.29004002,689.56,688.96,0.46060262]
[1748511492347,0.29004002,689.56,688.97,0.46060262]
[1748511492542,0.29004002,689.56,688.94,0.46060262]
[1748511492946,0.29004002,689.56,688.95,0.46060262]
[1748511493548,0.29004002,689.56,688.93,0.46060262]
[1748511494249,0.29004002,689.56,688.87,0.46060262]
[1748511494753,0.29004002,689.56,688.85,0.46060262]
[1748511495347,0.29004002,689.56,688.78,0.46060262]
[1748511495547,0.29004002,689.56,688.76,0.46060262]
[1748511495749,0.29004002,689.56,688.75,0.46060262]
[1748511496150,0.29004002,689.56,688.79,0.46060262]
[1748511496446,0.29004002,689.56,688.77,0.46060262]
[1748511496652,0.29004002,689.56,688.71,0.46060262]
[1748511497048,0.29004002,689.56,688.68,0.46060262]
[1748511497266,0.29004002,689.56,688.57,0.46060262]
[1748511497448,0.29004002,689.56,688.56,0.46060262]
[1748511497853,0.29004002,689.56,688.57,0.46060262]
[1748511498352,0.29004002,689.56,688.54,0.46060262]
[1748511498547,0.29004002,689.56,688.53,0.46060262]
[1748511498748,0.29004002,689.56,688.54,0.46060262]
[1748511499149,0.29004002,689.56,688.58,0.46060262]
[1748511499353,0.29004002,689.56,688.64,0.46060262]
[1748511499749,0.29004002,689.56,688.65,0.46060262]
[1748511500157,0.29004002,689.56,688.58,0.46060262]
[1748511500653,0.29004002,689.56,688.6,0.46060262]
[1748511501455,0.29004002,689.56,688.57,0.46060262]
[1748511501657,0.29004002,689.56,688.37,0.29054142]
[1748511508156,0.29004002,689.56,688.44,0.46060262]
[1748511508361,0.29004002,689.56,688.4,0.46060262]
[1748511508563,0.29004002,689.56,688.42,0.46060262]
[1748511508962,0.29004002,689.56,688.43,0.46060262]
[1748511509162,0.29004002,689.56,688.41,0.46060262]
[1748511509759,0.29004002,689.56,688.4,0.46060262]
[1748511510860,0.29004002,689.56,688.41,0.46060262]
[1748511511561,0.29004002,689.56,688.44,0.46060262]
[1748511511858,0.29004002,689.56,688.46,0.46060262]
[1748511512659,0.29004002,689.56,688.47,0.46060262]
[1748511512865,0.29004002,689.56,688.45,0.46060262]
[1748511513565,0.29004002,689.56,688.46,0.46060262]
[1748511514168,0.29004002,689.56,688.45,0.46060262]
[1748511514666,0.29004002,689.56,688.46,0.46060262]
[1748511516569,0.29004002,689.56,688.5,0.46060262]
[1748511517468,0.29004002,689.56,688.47,0.46060262]
[1748511517668,0.29004002,689.56,688.48,0.46060262]
[1748511518169,0.29004002,689.56,688.61,0.46060262]
[1748511518469,0.29004002,689.56,688.62,0.46060262]
[1748511518768,0.29004002,689.56,688.63,0.46060262]
[1748511518968,0.29004002,689.56,688.66,0.46060262]
[1748511519470,0.29004002,689.56,688.67,0.46060262]
[1748511519664,0.29004002,689.56,688.63,0.46060262]
[1748511519866,0.29004002,689.56,688.64,0.46060262]
[1748511520063,0.29004002,689.56,688.65,0.46060262]
[1748511520268,0.29004002,689.56,688.64,0.46060262]
[1748511520768,0.29004002,689.56,688.66,0.46060262]
[1748511520967,0.29004002,689.56,688.65,0.46060262]
[1748511521167,0.29004002,689.56,688.66,0.46060262]
[1748511521668,0.29004002,689.56,688.64,0.46060262]
[1748511522569,0.29004002,689.56,688.37,0.29054142]
[1748511522570,0.29004002,689.56,688.65,0.46060262]
[1748511522767,0.29004002,689.56,688.67,0.46060262]
[1748511523266,0.29004002,689.56,688.71,0.46060262]
[1748511523669,0.29004002,689.56,688.72,0.46060262]
[1748511523870,0.29004002,689.56,688.64,0.46060262]
[1748511524067,0.29004002,689.56,688.63,0.46060262]
[1748511524568,0.29004002,689.56,688.64,0.46060262]
[1748511525271,0.29004002,689.56,688.66,0.46060262]
[1748511525768,0.29004002,689.56,688.67,0.46060262]
[1748511526168,0.29004002,689.56,688.68,0.46060262]
[1748511526372,0.29004002,689.56,688.63,0.46060262]
[1748511526882,0.29004002,689.56,688.62,0.46060262]
[1748511527071,0.29004002,689.56,688.59,0.46060262]
[1748511527273,0.29004002,689.56,688.62,0.46060262]
[1748511527671,0.29004002,689.56,688.64,0.46060262]
[1748511527869,0.29004002,689.56,688.62,0.46060262]
[1748511528277,0.29004002,689.56,688.66,0.46060262]
[1748511528675,0.29004002,689.56,688.67,0.46060262]
[1748511528875,0.29004002,689.56,688.66,0.46060262]
[1748511529773,0.29004002,689.56,688.67,0.46060262]
[1748511529977,0.29004002,689.56,688.65,0.46060262]
[1748511530474,0.29004002,689.56,688.71,0.46060262]
[1748511530678,0.29004002,689.56,688.72,0.46060262]
[1748511531673,0.29004002,689.56,688.7,0.46060262]
[1748511531977,0.29004002,689.56,688.69,0.46060262]
[1748511532779,0.29004002,689.56,688.71,0.46060262]
[1748511532974,0.29004002,689.56,688.7,0.46060262]
[1748511533576,0.29004002,689.56,688.72,0.46060262]
[1748511534780,0.29004002,689.56,688.73,0.46060262]
[1748511535680,0.29004002,689.56,688.58,0.46060262]
[1748511536076,1.0251525,689.55,688.58,0.46060262]
[1748511536273,0.29004002,689.56,688.58,0.46060262]
[1748511536479,0.29004002,689.56,688.54,0.46060262]
[1748511536875,0.88534033,689.55,688.54,0.46060262]
[1748511537187,1.9105085,689.54,688.54,0.46060262]
[1748511537481,0.29004002,689.56,688.54,0.46060262]
[1748511537777,1.91051662,689.55,688.57,0.46060262]
[1748511537984,0.29004002,689.56,688.57,0.46060262]
[1748511538281,0.88534427,689.55,688.57,0.46060262]
[1748511538484,1.02517319,689.54,688.57,0.46060262]
[1748511538683,0.29004002,689.56,688.56,0.46060262]
[1748511539184,1.02489174,689.55,688.56,0.46060262]
[1748511539386,0.29004002,689.56,688.56,0.46060262]
[1748511539685,0.29004002,689.56,688.55,0.46060262]
[1748511540386,1.91016142,689.55,688.57,0.46060262]
[1748511540683,1.02488754,689.54,688.64,0.46060262]
[1748511540887,1.91016232,689.53,688.64,0.46060262]
[1748511541086,0.88527479,689.52,688.64,0.46060262]
[1748511541281,1.02488581,689.51,688.64,0.46060262]
[1748511541496,0.29004002,689.56,688.61,0.46060262]
[1748511541686,0.88530365,689.55,688.61,0.46060262]
[1748511541887,0.29004002,689.56,688.6,0.46060262]
[1748511542082,1.91022996,689.55,688.55,0.46060262]
[1748511542282,0.29004002,689.56,688.55,0.46060262]
[1748511542482,0.29004002,689.56,688.54,0.46060262]
[1748511542684,0.29004002,689.56,688.51,0.46060262]
[1748511542880,0.29004002,689.56,688.47,0.46060262]
[1748511543181,1.02492149,689.55,688.47,0.46060262]
[1748511543381,1.91023002,689.54,688.47,0.46060262]
[1748511543587,0.29004002,689.56,688.46,0.46060262]
[1748511543780,1.02492149,689.55,688.46,0.46060262]
[1748511543982,1.02492257,689.54,688.45,0.46060262]
[1748511544186,0.29004002,689.56,688.45,0.46060262]
[1748511544381,0.29004002,689.56,688.44,0.46060262]
[1748511544784,0.29004002,689.56,688.41,0.46060262]
[1748511544983,1.90943087,689.55,688.41,0.46060262]
[1748511545184,0.88491625,689.54,688.41,0.46060262]
[1748511545383,1.90943087,689.53,688.41,0.46060262]
[1748511545689,0.88491625,689.52,688.4,0.46060262]
[1748511545887,1.02451496,689.51,688.44,0.46060262]
[1748511546086,1.909433,689.5,688.45,0.46060262]
[1748511546283,1.909433,689.49,688.45,0.46060262]
[1748511546487,1.909433,689.48,688.44,0.46060262]
[1748511546785,1.90919078,689.47,688.39,0.46060262]
[1748511546981,1.90954255,689.46,688.37,0.29054142]
[1748511547188,0.8848147,689.45,688.37,0.29054142]
[1748511547389,1.02451496,689.51,688.37,0.29054142]
[1748511547588,0.88481483,689.5,688.37,0.29054142]
[1748511547789,1.90968242,689.49,688.37,0.29054142]
[1748511548083,1.90968242,689.48,688.37,0.29054142]
[1748511548289,1.90968242,689.47,688.37,0.29054142]
[1748511548490,0.88481483,689.46,688.37,0.29054142]
[1748511548706,0.88481483,689.45,688.37,0.29054142]
[1748511548984,1.90949122,689.5,688.37,0.29054142]
[1748511549190,1.02451496,689.51,688.37,0.29054142]
[1748511549393,0.88499697,689.5,688.37,0.75114404]
[1748511549589,0.88499697,689.49,688.37,0.75114404]
[1748511549803,1.02451496,689.51,688.37,0.75114404]
[1748511549986,0.88507564,689.5,688.41,0.46060262]
[1748511550185,1.02451496,689.51,688.47,0.46060262]
[1748511550387,0.88507203,689.5,688.47,0.46060262]
[1748511550585,1.02451496,689.51,688.47,0.46060262]
[1748511551790,1.02451496,689.51,688.46,0.46060262]
[1748511552092,1.02451496,689.51,688.42,0.46060262]
[1748511552587,0.88415144,689.5,688.42,0.46060262]
[1748511552793,1.02451496,689.51,688.41,0.46060262]
[1748511553994,0.88415243,689.5,688.41,0.46060262]
[1748511554207,1.02451496,689.51,688.4,0.46060262]
[1748511554388,0.88424164,689.49,688.4,0.46060262]
[1748511555196,0.88424164,689.49,688.47,0.46060262]
[1748511555390,0.88424164,689.49,688.37,0.29054142]
[1748511555391,0.88424164,689.49,688.46,0.46060262]
[1748511555590,0.88428406,689.48,688.46,0.46060262]
[1748511555793,0.88424164,689.49,688.46,0.46060262]
[1748511556097,0.88424164,689.49,688.45,0.46060262]
[1748511556494,0.8842907,689.48,688.45,0.46060262]
[1748511556696,0.88424164,689.49,688.45,0.46060262]
[1748511556893,0.88429075,689.48,688.45,0.46060262]
[1748511557394,0.88431677,689.47,688.43,0.46060262]
[1748511557601,0.88424164,689.49,688.46,0.46060262]
[1748511558098,0.88335904,689.48,688.46,0.46060262]
[1748511558299,0.88335904,689.47,688.46,0.46060262]
[1748511558492,0.88335904,689.48,688.46,0.46060262]
[1748511558692,0.88335953,689.47,688.46,0.46060262]
[1748511558900,0.88424164,689.49,688.46,0.46060262]
[1748511559500,0.88336004,689.48,688.46,0.46060262]
[1748511559797,0.88424164,689.49,688.46,0.46060262]
[1748511560000,0.88424164,689.49,688.48,0.46060262]
[1748511560293,0.88424164,689.49,688.47,0.46060262]
[1748511560695,0.88424164,689.49,688.48,0.46060262]
[1748511561300,0.88424164,689.49,688.39,0.46060262]
[1748511561495,0.88273964,689.48,688.38,0.46060262]
[1748511561692,0.88424164,689.49,688.38,0.46060262]
[1748511561995,0.8827398,689.48,688.47,0.46060262]
[1748511562199,0.88273952,689.47,688.4,0.46060262]
[1748511562396,0.88424164,689.49,688.37,0.29054142]
[1748511562593,1.17431111,689.49,688.37,0.29054142]
[1748511562793,1.02464063,689.48,688.37,0.29054142]
[1748511562998,1.02464394,689.47,688.37,0.29054142]
[1748511563201,1.17431111,689.49,688.37,0.29054142]
[1748511563202,1.02463928,689.46,688.37,0.29054142]
[1748511563396,0.88282617,689.45,688.37,0.29054142]
[1748511563600,0.88282617,689.44,688.37,0.29054142]
[1748511563800,1.02465471,689.44,688.37,0.29054142]
[1748511564296,0.88274541,689.43,688.37,0.29054142]
[1748511564499,1.02465471,689.44,688.37,0.29054142]
[1748511564698,0.88192234,689.43,688.37,0.29054142]
[1748511564898,1.02465471,689.44,688.37,0.29054142]
[1748511566602,0.29009471,689.43,688.32,0.46060262]
[1748511566901,0.29009471,689.43,688.31,0.46060262]
[1748511567303,0.29009471,689.43,688.25,0.46060262]
[1748511567802,0.29009471,689.43,688.36,0.46060262]
[1748511568001,0.29009471,689.43,688.34,0.46060262]
[1748511568502,0.29009471,689.43,688.12,0.25258115]
[1748511572298,0.29009471,689.43,688.13,0.46060262]
[1748511572599,0.29009471,689.43,688.12,0.71318377]
[1748511573705,0.29009471,689.43,688.12,0.25258115]
[1748511574404,0.29009471,689.43,688.13,0.46060262]
[1748511575808,0.29009471,689.43,688.12,0.25258115]
[1748511576010,0.29009471,689.43,688.38,0.46060262]
[1748511576708,0.29009471,689.43,688.32,0.46060262]
[1748511577209,0.29009471,689.43,688.31,0.46060262]
[1748511577511,0.29009471,689.43,688.43,0.46060262]
[1748511577709,0.29009471,689.43,688.39,0.46060262]
[1748511577907,0.29009471,689.43,688.4,0.46060262]
[1748511578308,0.29009471,689.43,688.39,0.46060262]
[1748511578904,0.29009471,689.43,688.43,0.46060262]
[1748511579403,0.29009471,689.43,688.48,0.46060262]
[1748511580206,0.29009471,689.43,688.5,0.46060262]
[1748511580407,0.29009471,689.43,688.58,0.46060262]
[1748511580662,0.29009471,689.43,688.59,0.46060262]
[1748511580912,0.29009471,689.43,688.57,0.46060262]
[1748511581912,0.29009471,689.43,688.58,0.46060262]
[1748511582114,0.29009471,689.43,688.65,0.46060262]
[1748511582316,0.29009471,689.43,688.61,0.46060262]
[1748511583117,0.29009471,689.43,688.59,0.46060262]
[1748511583423,0.29009471,689.43,688.57,0.46060262]
[1748511584628,0.29009471,689.43,688.58,0.46060262]
[1748511585018,0.29009471,689.43,688.6,0.46060262]
[1748511585717,0.29009471,689.43,688.57,0.46060262]
[1748511586316,0.29009471,689.43,688.56,0.46060262]
[1748511586515,0.29009471,689.43,688.57,0.46060262]
[1748511586719,1.02569386,689.42,688.57,0.46060262]
[1748511586918,1.90955161,689.41,688.57,0.46060262]
[1748511587213,1.90955161,689.41,688.12,0.25258115]
[1748511587214,1.9095528,689.4,688.41,0.46060262]
[1748511587415,1.9095528,689.39,688.41,0.46060262]
[1748511587617,0.88385775,689.38,688.42,0.46060262]
[1748511587819,0.88451661,689.37,688.42,0.46060262]
[1748511588021,0.29009471,689.43,688.42,0.46060262]
[1748511588217,1.02583536,689.42,688.42,0.46060262]
[1748511588417,0.29009471,689.43,688.42,0.46060262]
[1748511588418,1.02583536,689.41,688.42,0.46060262]
[1748511588619,1.91034331,689.4,688.42,0.46060262]
[1748511588818,0.8845129,689.39,688.42,0.46060262]
[1748511589019,0.8845129,689.38,688.42,0.46060262]
[1748511589221,0.8845129,689.37,688.42,0.46060262]
[1748511589415,1.02587754,689.42,688.42,0.46060262]
[1748511589620,1.91042943,689.41,688.42,0.46060262]
[1748511589821,1.91040883,689.4,688.44,0.46060262]
[1748511590017,1.02587631,689.39,688.44,0.46060262]
[1748511590220,0.88453248,689.38,688.49,0.46060262]
[1748511590420,0.88453248,689.37,688.49,0.46060262]
[1748511590617,1.0258758,689.42,688.49,0.46060262]
[1748511590938,1.91044714,689.41,688.55,0.46060262]
[1748511591116,1.91044714,689.4,688.55,0.46060262]
[1748511591320,0.29009471,689.43,688.55,0.46060262]
[1748511591528,1.91050181,689.42,688.56,0.46060262]
[1748511591717,1.91050185,689.41,688.56,0.46060262]
[1748511591922,1.91050315,689.4,688.56,0.46060262]
[1748511592121,0.29009471,689.43,688.56,0.46060262]
[1748511592122,1.91050315,689.39,688.56,0.46060262]
[1748511592322,0.88455076,689.38,688.56,0.46060262]
[1748511592523,0.29009471,689.43,688.56,0.46060262]
[1748511592818,0.29009471,689.43,688.55,0.46060262]
[1748511592819,1.9105729,689.42,688.55,0.46060262]
[1748511593017,1.91062423,689.41,688.56,0.46060262]
[1748511593222,1.91062423,689.4,688.56,0.46060262]
[1748511593422,1.9110316,689.39,688.56,0.46060262]
[1748511593622,1.9110316,689.38,688.56,0.46060262]
[1748511593819,0.88498274,689.37,688.57,0.46060262]
[1748511594018,0.88498274,689.36,688.57,0.46060262]
[1748511594223,1.02607907,689.42,688.64,0.46060262]
[1748511594419,0.29009471,689.43,688.63,0.46060262]
[1748511594420,1.91108942,689.41,688.63,0.46060262]
[1748511594620,1.91108942,689.4,688.64,0.46060262]
[1748511594824,1.91108942,689.39,688.64,0.46060262]
[1748511595037,0.29009471,689.43,688.64,0.46060262]
[1748511595038,1.91108942,689.38,688.64,0.46060262]
[1748511595219,0.88478262,689.37,688.64,0.46060262]
[1748511595418,0.29009471,689.43,688.63,0.46060262]
[1748511595622,0.88478205,689.42,688.64,0.46060262]
[1748511595920,0.29009471,689.43,688.64,0.46060262]
[1748511596119,1.91093214,689.42,688.64,0.46060262]
[1748511596324,1.91093214,689.41,688.67,0.46060262]
[1748511596620,1.91092315,689.4,688.68,0.46060262]
[1748511596924,1.91092315,689.39,688.74,0.46060262]
[1748511597121,1.02612287,689.38,688.6,0.46060262]
[1748511597319,1.91100593,689.37,688.6,0.46060262]
[1748511597524,0.88489353,689.36,688.6,0.46060262]
[1748511597720,0.88489332,689.35,688.6,0.46060262]
[1748511597922,0.29009471,689.43,688.6,0.46060262]
[1748511598137,1.91105469,689.42,688.6,0.46060262]
[1748511598324,1.91105469,689.41,688.6,0.46060262]
[1748511598518,1.91105469,689.4,688.6,0.46060262]
[1748511598722,1.91105469,689.39,688.6,0.46060262]
[1748511598919,1.91076299,689.38,688.6,0.46060262]
[1748511599121,1.9107923,689.37,688.6,0.46060262]
[1748511599325,0.29009471,689.43,688.51,0.46060262]
[1748511599523,1.9107849,689.42,688.5,0.46060262]